fUST/lending_fUST_20250602
["ID","MTS","AMOUNT","RATE_DAILY","PERIOD"]
[363666049,1748804847437,-430.0,0.00016709,2]
[363666050,1748804847460,-430.0,0.00016709,2]
[363666051,1748804847482,-430.0,0.00016709,2]
[363666052,1748804847507,-430.0,0.00016709,2]
[363666053,1748804847530,-430.0,0.00016709,2]
[363666054,1748804847553,-430.0,0.00016709,2]
[363666055,1748804847577,-430.0,0.00016709,2]
[363666056,1748804847597,-404.15739841,0.0001671,2]
[363666057,1748804847621,-430.0,0.0001671,2]
[363666058,1748804847644,-409.55664954,0.0001671,2]
[363666059,1748804847666,-430.0,0.0001671,2]
[363666060,1748804847689,-430.0,0.0001671,2]
[363666061,1748804847715,-430.0,0.0001671,2]
[363666062,1748804847740,-430.0,0.0001671,2]
[363666063,1748804847764,-430.0,0.0001671,2]
[363666064,1748804847787,-430.0,0.0001671,2]
[363666065,1748804847810,-430.0,0.0001671,2]
[363666066,1748804847834,-430.0,0.0001671,2]
[363666067,1748804847856,-436.0858894,0.0001671,2]
[363666068,1748804847877,-440.89750212,0.0001671,2]
[363666069,1748804847900,-430.0,0.0001671,2]
[363666070,1748804847923,-430.0,0.0001671,2]
[363666071,1748804847943,-430.0,0.0001671,2]
[363666072,1748804847966,-430.0,0.0001671,2]
[363666073,1748804847989,-430.0,0.0001671,2]
[363666074,1748804848012,-430.0,0.0001671,2]
[363666075,1748804848034,-162.12,0.0001671,2]
[363666076,1748804848056,-430.0,0.0001671,2]
[363666077,1748804848077,-423.0,0.0001671,2]
[363666078,1748804848099,-319.04150137,0.0001671,2]
[363666079,1748804848121,-478.39040511,0.0001671,2]
[363666080,1748804848146,-430.0,0.0001671,2]
[363666081,1748804848172,-430.0,0.0001671,2]
[363666082,1748804848195,-430.0,0.0001671,2]
[363666083,1748804848219,-430.0,0.0001671,2]
[363666084,1748804848241,-430.0,0.0001671,2]
[363666085,1748804848265,-430.0,0.0001671,2]
[363666086,1748804848287,-261.37758368,0.0001671,2]
[363666087,1748804848309,-430.0,0.0001671,2]
[363666088,1748804848332,-491.19,0.0001671,2]
[363666089,1748804848354,-183.19,0.0001671,2]
[363666090,1748804848375,-216.6070701,0.0001671,2]
[363666091,1748804848398,-430.0,0.0001671,2]
[363666092,1748804848422,-323.11793331,0.0001671,2]
[363666093,1748804848444,-430.0,0.0001671,2]
[363666094,1748804848468,-190.36,0.0001671,2]
[363666095,1748804848669,-430.0,0.0001671,2]
[363666096,1748804848701,-430.0,0.0001671,2]
[363666097,1748804848723,-430.0,0.0001671,2]
[363666098,1748804848747,-430.0,0.0001671,2]
[363666099,1748804848772,-430.0,0.0001671,2]
[363666100,1748804848795,-430.0,0.0001671,2]
[363666101,1748804848819,-430.0,0.0001671,2]
[363666102,1748804848844,-542.49,0.0001671,2]
[363666103,1748804848867,-430.0,0.0001671,2]
[363666104,1748804848888,-430.0,0.0001671,2]
[363666105,1748804848912,-430.0,0.0001671,2]
[363666106,1748804848937,-430.0,0.0001671,2]
[363666107,1748804848962,-430.0,0.0001671,2]
[363666108,1748804848986,-430.0,0.0001671,2]
[363666109,1748804849009,-430.0,0.0001671,2]
[363666110,1748804849033,-430.0,0.0001671,2]
[363666111,1748804849055,-430.0,0.0001671,2]
[363666112,1748804849077,-430.0,0.0001671,2]
[363666113,1748804849100,-430.0,0.0001671,2]
[363666114,1748804849122,-430.0,0.0001671,2]
[363666115,1748804849146,-430.0,0.00016711,2]
[363666116,1748804849168,-478.58,0.00016711,2]
[363666117,1748804849192,-430.0,0.00016711,2]
[363666118,1748804849215,-430.0,0.00016711,2]
[363666119,1748804849239,-430.0,0.00016711,2]
[363666120,1748804849262,-430.0,0.00016711,2]
[363666121,1748804849284,-452.68,0.00016711,2]
[363666122,1748804849306,-430.0,0.00016711,2]
[363666123,1748804849327,-430.0,0.00016712,2]
[363666124,1748804849348,-430.0,0.00016712,2]
[363666125,1748804849369,-430.0,0.00016712,2]
[363666126,1748804849391,-430.0,0.00016712,2]
[363666127,1748804849414,-430.0,0.00016983,2]
[363666128,1748804849440,-457.83,0.00016983,2]
[363666129,1748804849466,-451.43957263,0.00016983,2]
[363666130,1748804849491,-602.38,0.00016983,2]
[363666131,1748804849519,-786.92,0.00016983,2]
[363666132,1748804849544,-562.55,0.00016983,2]
[363666133,1748804849572,-795.61,0.00016983,2]
[363666134,1748804849596,-430.0,0.00016983,2]
[363666135,1748804849621,-430.0,0.00016983,2]
[363666136,1748804849648,-430.0,0.00016983,2]
[363666137,1748804849670,-430.0,0.00016983,2]
[363666138,1748804849696,-430.0,0.00016983,2]
[363666139,1748804849723,-430.0,0.00016983,2]
[363666140,1748804849751,-430.0,0.00016983,2]
[363666141,1748804849775,-430.0,0.00016983,2]
[363666142,1748804849798,-415.52,0.00016983,2]
[363666143,1748804849821,-430.0,0.00016983,2]
[363666144,1748804849843,-430.0,0.00016984,2]
[363666145,1748804849870,-430.0,0.00016984,2]
[363666146,1748804849895,-430.0,0.00016984,2]
[363666147,1748804849920,-487.42742233,0.00016984,2]
[363666148,1748804849944,-430.0,0.00016984,2]
[363666149,1748804849969,-195.18,0.00016984,2]
[363666150,1748804849993,-430.0,0.00016984,2]
[363666151,1748804850019,-430.0,0.00016984,2]
[363666152,1748804850043,-491.19,0.00016984,2]
[363666153,1748804850067,-430.0,0.00016984,2]
[363666154,1748804850097,-542.49,0.00016984,2]
[363666155,1748804850124,-430.0,0.00016984,2]
[363666156,1748804850149,-430.0,0.00016984,2]
[363666157,1748804850172,-430.0,0.00016984,2]
[363666158,1748804850196,-430.0,0.00016985,2]
[363666159,1748804850220,-452.68,0.00016985,2]
[363666160,1748804850245,-290.16,0.00016986,2]
[363666161,1748804850268,-445.106792,0.0001703,2]
[363666162,1748804850293,-457.83,0.00017257,2]
[363666163,1748804850320,-602.38,0.00017257,2]
[363666164,1748804850345,-786.92,0.00017257,2]
[363666165,1748804850371,-562.55,0.00017257,2]
[363666166,1748804850396,-795.61,0.00017257,2]
[363666167,1748804850422,-39.73532354,0.00017257,2]
[363666172,1748805032575,-204.2136669,0.00016599,2]
[363666173,1748805032586,-300.0,0.00016698,2]
[363666174,1748805032596,-300.0,0.00016698,2]
[363666175,1748805032606,-263.35347126,0.00016698,2]
[363666187,1748805038554,-936.64652874,0.00016698,2]
[363666189,1748805038563,-497.78,0.00016699,2]
[363666191,1748805038573,-828.37,0.00016699,2]
[363666193,1748805038582,-624.53,0.00016699,2]
[363666195,1748805038592,-594.52,0.00016699,2]
[363666197,1748805038601,-430.0,0.00016699,2]
[363666199,1748805038611,-543.32,0.00016699,2]
[363666201,1748805038621,-430.0,0.00016699,2]
[363666203,1748805038630,-430.0,0.00016699,2]
[363666205,1748805038639,-430.0,0.00016709,2]
[363666207,1748805038649,-588.88,0.00016709,2]
[363666209,1748805038659,-3400.05359124,0.00016709,7]
[363666211,1748805038671,-8930.48379808,0.00016709,7]
[363666213,1748805038680,-503.77,0.00016709,2]
[363666215,1748805038690,-430.0,0.0001671,2]
[363666216,1748805038699,-430.0,0.0001671,2]
[363666217,1748805038712,-430.0,0.0001671,2]
[363666218,1748805038722,-548.49,0.0001671,2]
[363666219,1748805038732,-430.0,0.0001671,2]
[363666220,1748805038742,-633.3,0.0001671,2]
[363666221,1748805038752,-4283.96470921,0.000169,2]
[363666222,1748805038763,-497.78,0.00016973,2]
[363666223,1748805038773,-828.37,0.00016973,2]
[363666224,1748805038785,-624.53,0.00016973,2]
[363666225,1748805038795,-594.52,0.00016973,2]
[363666226,1748805038805,-430.0,0.00016973,2]
[363666227,1748805038815,-543.32,0.00016973,2]
[363666228,1748805038826,-430.0,0.00016973,2]
[363666229,1748805038836,-430.0,0.00016973,2]
[363666230,1748805038845,-430.0,0.00016983,2]
[363666231,1748805038854,-588.88,0.00016983,2]
[363666232,1748805038863,-320.13,0.00016984,2]
[363666233,1748805038872,-430.0,0.00016984,2]
[363666234,1748805038882,-430.0,0.00016984,2]
[363666235,1748805038892,-548.49,0.00016984,2]
[363666236,1748805038902,-430.0,0.00016984,2]
[363666237,1748805038912,-633.3,0.00016984,2]
[363666238,1748805038922,-5000.0,0.00017084,2]
[363666239,1748805038932,-4283.96470913,0.00017141,2]
[363666240,1748805038943,-497.78,0.00017247,2]
[363666241,1748805038954,-828.37,0.00017247,2]
[363666242,1748805038964,-624.53,0.00017247,2]
[363666243,1748805038974,-594.52,0.00017247,2]
[363666244,1748805038984,-430.0,0.00017247,2]
[363666245,1748805038994,-543.32,0.00017247,2]
[363666246,1748805039009,-430.0,0.00017247,2]
[363666247,1748805039019,-430.0,0.00017247,2]
[363666248,1748805039028,-244.96,0.00017257,2]
[363666249,1748805039038,-430.0,0.00017257,2]
[363666250,1748805039047,-430.0,0.00017257,2]
[363666251,1748805039057,-259.89,0.00017257,2]
[363666252,1748805039209,-440.28,0.00017257,2]
[363666253,1748805039219,-430.0,0.00017257,2]
[363666254,1748805039229,-588.88,0.00017257,2]
[363666255,1748805039239,-430.0,0.00017258,2]
[363666256,1748805039249,-430.0,0.00017258,2]
[363666257,1748805039259,-430.0,0.00017258,2]
[363666258,1748805039269,-430.0,0.00017258,2]
[363666259,1748805039280,-548.49,0.00017258,2]
[363666260,1748805039291,-430.0,0.00017258,2]
[363666261,1748805039301,-633.3,0.00017258,2]
[363666262,1748805039310,-182.0,0.00017259,2]
[363666263,1748805039319,-182.0,0.00017259,2]
[363666264,1748805039328,-182.0,0.00017259,2]
[363666265,1748805039337,-182.0,0.00017259,2]
[363666266,1748805039345,-4283.96470913,0.00017383,2]
[363666267,1748805039355,-497.78,0.00017521,2]
[363666268,1748805039364,-828.37,0.00017521,2]
[363666269,1748805039372,-624.53,0.00017521,2]
[363666270,1748805039381,-594.52,0.00017521,2]
[363666271,1748805039389,-430.0,0.00017521,2]
[363666272,1748805039398,-543.32,0.00017521,2]
[363666273,1748805039408,-430.0,0.00017521,2]
[363666274,1748805039417,-430.0,0.00017521,2]
[363666275,1748805039427,-430.0,0.00017531,2]
[363666276,1748805039435,-335.5,0.00017531,2]
[363666277,1748805039445,-430.0,0.00017531,2]
[363666278,1748805039454,-588.88,0.00017531,2]
[363666279,1748805039463,-430.0,0.00017532,2]
[363666280,1748805039472,-430.0,0.00017532,2]
[363666281,1748805039481,-430.0,0.00017532,2]
[363666282,1748805039492,-548.49,0.00017532,2]
[363666283,1748805039501,-430.0,0.00017532,2]
[363666284,1748805039509,-633.3,0.00017532,2]
[363666285,1748805039517,-420.0,0.00017551,2]
[363666286,1748805039524,-4283.96470913,0.00017624,2]
[363666287,1748805039532,-497.78,0.00017795,2]
[363666288,1748805039540,-828.37,0.00017795,2]
[363666289,1748805039548,-624.53,0.00017795,2]
[363666290,1748805039558,-594.52,0.00017795,2]
[363666291,1748805039568,-430.0,0.00017795,2]
[363666292,1748805039578,-543.32,0.00017795,2]
[363666293,1748805039589,-430.0,0.00017795,2]
[363666294,1748805039598,-430.0,0.00017795,2]
[363666295,1748805039609,-430.0,0.00017805,2]
[363666296,1748805039619,-430.0,0.00017805,2]
[363666297,1748805039631,-588.88,0.00017805,2]
[363666298,1748805039641,-430.0,0.00017806,2]
[363666299,1748805039649,-430.0,0.00017806,2]
[363666300,1748805039659,-548.49,0.00017806,2]
[363666301,1748805039669,-430.0,0.00017806,2]
[363666302,1748805039679,-633.3,0.00017806,2]
[363666303,1748805039690,-316.38801717,0.00017848,2]
[363666304,1748805039699,-4283.96470913,0.00017866,2]
[363666305,1748805039713,-988.27,0.00018019,2]
[363666306,1748805039723,-497.78,0.00018069,2]
[363666307,1748805039733,-828.37,0.00018069,2]
[363666308,1748805039742,-624.53,0.00018069,2]
[363666309,1748805039753,-594.52,0.00018069,2]
[363666310,1748805039763,-430.0,0.00018069,2]
[363666311,1748805039773,-543.32,0.00018069,2]
[363666312,1748805039785,-430.0,0.00018069,2]
[363666313,1748805039794,-430.0,0.00018069,2]
[363666314,1748805039803,-430.0,0.00018079,2]
[363666315,1748805039815,-430.0,0.00018079,2]
[363666316,1748805039825,-588.88,0.00018079,2]
[363666317,1748805039835,-430.0,0.0001808,2]
[363666318,1748805039845,-430.0,0.0001808,2]
[363666319,1748805039854,-548.49,0.0001808,2]
[363666320,1748805039864,-430.0,0.0001808,2]
[363666321,1748805039874,-633.3,0.0001808,2]
[363666322,1748805039883,-4283.96470913,0.00018107,2]
[363666323,1748805039893,-160.0,0.00018112,2]
[363666324,1748805039903,-160.0,0.00018157,2]
[363666325,1748805039914,-160.0,0.00018157,2]
[363666326,1748805039924,-423.51412927,0.00018157,2]
[363666327,1748805039934,-212.80060342,0.00018157,2]
[363666328,1748805039945,-160.0,0.00018157,2]
[363666329,1748805039955,-229.3709046,0.00018157,2]
[363666330,1748805039965,-160.0,0.00018157,2]
[363666331,1748805039975,-842.5625,0.00018159,2]
[363666332,1748805039984,-160.0,0.00018159,2]
[363666333,1748805039993,-160.0,0.00018159,2]
[363666334,1748805040004,-305.0677093,0.00018185,2]
[363666335,1748805040013,-420.0,0.00018244,2]
[363666336,1748805040023,-1680.0,0.00018334,2]
[363666337,1748805040035,-497.78,0.00018343,2]
[363666338,1748805040044,-828.37,0.00018343,2]
[363666339,1748805040055,-624.53,0.00018343,2]
[363666340,1748805040065,-594.52,0.00018343,2]
[363666341,1748805040074,-430.0,0.00018343,2]
[363666342,1748805040084,-543.32,0.00018343,2]
[363666343,1748805040094,-430.0,0.00018343,2]
[363666344,1748805040104,-430.0,0.00018343,2]
[363666345,1748805040114,-4283.96470913,0.00018348,2]
[363666346,1748805040124,-430.0,0.00018353,2]
[363666348,1748805040133,-430.0,0.00018353,2]
[363666349,1748805040143,-588.88,0.00018353,2]
[363666350,1748805040153,-430.0,0.00018354,2]
[363666351,1748805040164,-430.0,0.00018354,2]
[363666352,1748805040174,-548.49,0.00018354,2]
[363666353,1748805040183,-176.91843333,0.00018354,2]
[363666354,1748805040194,-633.3,0.00018354,2]
[363666355,1748805040204,-259.30331574,0.00018401,2]
[363666356,1748805040213,-500.0,0.00018518,2]
[363666357,1748805040223,-4283.96470913,0.0001859,2]
[363666358,1748805040232,-497.78,0.00018617,2]
[363666359,1748805040242,-828.37,0.00018617,2]
[363666360,1748805040252,-624.53,0.00018617,2]
[363666361,1748805040261,-594.52,0.00018617,2]
[363666362,1748805040271,-430.0,0.00018617,2]
[363666363,1748805040281,-543.32,0.00018617,2]
[363666364,1748805040290,-430.0,0.00018617,2]
[363666365,1748805040300,-430.0,0.00018617,2]
[363666366,1748805040309,-430.0,0.00018627,2]
[363666367,1748805040319,-212.69,0.00018627,2]
[363666368,1748805040329,-588.88,0.00018627,2]
[363666369,1748805040338,-294.74,0.00018628,2]
[363666370,1748805040348,-430.0,0.00018628,2]
[363666371,1748805040357,-548.49,0.00018628,2]
[363666372,1748805040367,-633.3,0.00018628,2]
[363666373,1748805040377,-3000.0,0.000188,2]
[363666374,1748805040387,-3000.0,0.0001881,2]
[363666375,1748805040396,-3000.0,0.0001882,2]
[363666376,1748805040406,-3000.0,0.0001883,2]
[363666377,1748805040417,-4283.96470913,0.00018831,2]
[363666378,1748805040426,-3000.0,0.0001884,2]
[363666380,1748805040436,-4483.080538,0.0001885,2]
[363666382,1748805040447,-497.78,0.00018891,2]
[363666384,1748805040457,-828.37,0.00018891,2]
[363666386,1748805040466,-624.53,0.00018891,2]
[363666389,1748805040485,-594.52,0.00018891,2]
[363666391,1748805040497,-430.0,0.00018891,2]
[363666393,1748805040506,-543.32,0.00018891,2]
[363666395,1748805040517,-430.0,0.00018891,2]
[363666397,1748805040526,-430.0,0.00018891,2]
[363666400,1748805040537,-789.53798259,0.000189,2]
[363666402,1748805040547,-430.0,0.00018901,2]
[363666404,1748805040556,-588.88,0.00018901,2]
[363666406,1748805040566,-430.0,0.00018902,2]
[363666408,1748805040576,-548.49,0.00018902,2]
[363666410,1748805040586,-633.3,0.00018902,2]
[363666412,1748805040596,-500.0,0.00019066,2]
[363666414,1748805040606,-4283.96470913,0.00019072,2]
[363666416,1748805040616,-497.78,0.00019165,2]
[363666418,1748805040626,-828.37,0.00019165,2]
[363666420,1748805040636,-624.53,0.00019165,2]
[363666421,1748805040646,-594.52,0.00019165,2]
[363666422,1748805040655,-430.0,0.00019165,2]
[363666423,1748805040665,-543.32,0.00019165,2]
[363666424,1748805040674,-430.0,0.00019165,2]
[363666425,1748805040683,-430.0,0.00019165,2]
[363666426,1748805040694,-430.0,0.00019175,2]
[363666427,1748805040704,-588.88,0.00019175,2]
[363666428,1748805040718,-430.0,0.00019176,2]
[363666429,1748805040728,-548.49,0.00019176,2]
[363666430,1748805040738,-633.3,0.00019176,2]
[363666431,1748805040747,-284.74819048,0.00019178,2]
[363666432,1748805040757,-151.0,0.00019178,2]
[363666433,1748805040767,-173.899304,0.00019178,2]
[363666434,1748805040777,-156.587,0.00019233,2]
[363666435,1748805040786,-162.380719,0.00019288,2]
[363666436,1748805040796,-4283.96470913,0.00019314,2]
[363666437,1748805040805,-224.03,0.00019319,3]
[363666438,1748805040815,-672.13,0.00019319,3]
[363666439,1748805040824,-32425.07483976,0.00019329,2]
[363666440,1748805040833,-168.3888056,0.00019343,2]
[363666441,1748805040843,-174.61919141,0.00019398,2]
[363666442,1748805040852,-497.78,0.00019439,2]
[363666443,1748805040862,-828.37,0.00019439,2]
[363666444,1748805040871,-624.53,0.00019439,2]
[363666445,1748805040882,-594.52,0.00019439,2]
[363666446,1748805040892,-430.0,0.00019439,2]
[363666448,1748805040901,-543.32,0.00019439,2]
[363666449,1748805040911,-430.0,0.00019439,2]
[363666452,1748805040922,-430.0,0.00019439,2]
[363666454,1748805040932,-430.0,0.00019449,2]
[363666456,1748805040942,-588.88,0.00019449,2]
[363666458,1748805040953,-430.0,0.0001945,2]
[363666460,1748805040963,-548.49,0.0001945,2]
[363666462,1748805040975,-633.3,0.0001945,2]
[363666464,1748805040984,-181.08010149,0.00019453,2]
[363666466,1748805040994,-187.78006525,0.00019508,2]
[363666468,1748805041004,-4283.96470913,0.00019555,2]
[363666470,1748805041014,-194.72792766,0.00019563,2]
[363666472,1748805041024,-408.57,0.00019569,2]
[363666474,1748805041034,-201.93286099,0.00019618,2]
[363666476,1748805041045,-1976.55,0.00019657,2]
[363666478,1748805041055,-209.40437684,0.00019673,2]
[363666480,1748805041065,-497.78,0.00019713,2]
[363666482,1748805041074,-828.37,0.00019713,2]
[363666484,1748805041084,-624.53,0.00019713,2]
[363666486,1748805041094,-594.52,0.00019713,2]
[363666488,1748805041103,-430.0,0.00019713,2]
[363666490,1748805041113,-543.32,0.00019713,2]
[363666492,1748805041123,-430.0,0.00019713,2]
[363666494,1748805041132,-430.0,0.00019713,2]
[363666496,1748805041142,-430.0,0.00019723,2]
[363666498,1748805041153,-588.88,0.00019723,2]
[363666500,1748805041162,-552.76984346,0.00019724,2]
[363666502,1748805041172,-548.49,0.00019724,2]
[363666504,1748805041181,-633.3,0.00019724,2]
[363666506,1748805041192,-217.15233878,0.00019728,2]
[363666508,1748805041201,-225.18697532,0.00019783,2]
[363666510,1748805041211,-4283.96470913,0.00019797,2]
[363666512,1748805041222,-233.51889341,0.00019838,2]
[363666514,1748805041231,-242.15909246,0.00019893,2]
[363666516,1748805041241,-740.73325982,0.000199,2]
[363666518,1748805041251,-587.0,0.00019932,2]
[363666520,1748805041261,-251.11897888,0.00019948,2]
[363666522,1748805041270,-497.78,0.00019987,2]
[363666524,1748805041280,-828.37,0.00019987,2]
[363666526,1748805041289,-624.53,0.00019987,2]
[363666528,1748805041298,-594.52,0.00019987,2]
[363666530,1748805041308,-430.0,0.00019987,2]
[363666532,1748805041317,-543.32,0.00019987,2]
[363666534,1748805041327,-430.0,0.00019987,2]
[363666536,1748805041337,-430.0,0.00019987,2]
[363666537,1748805041346,-430.0,0.00019997,2]
[363666539,1748805041356,-588.88,0.00019997,2]
[363666541,1748805041365,-548.49,0.00019998,2]
[363666543,1748805041375,-633.3,0.00019998,2]
[363666545,1748805041386,-151.384668,0.0002,2]
[363666548,1748805041396,-151.0,0.0002,2]
[363666550,1748805041406,-151.0,0.0002,2]
[363666552,1748805041415,-188005.57299744,0.0002,2]
[363666554,1748805041425,-398.14421554,0.00020003,2]
[363666556,1748805041435,-4283.96470913,0.00020038,2]
[363666558,1748805041445,-500.0,0.00020067,2]
[363666560,1748805041456,-281.0,0.00020131,2]
[363666562,1748805041467,-184.621104,0.00020187,2]
[363666564,1748805041476,-497.78,0.00020261,2]
[363666566,1748805041486,-828.37,0.00020261,2]
[363666568,1748805041496,-624.53,0.00020261,2]
[363666570,1748805041505,-594.52,0.00020261,2]
[363666572,1748805041514,-430.0,0.00020261,2]
[363666574,1748805041524,-543.32,0.00020261,2]
[363666576,1748805041534,-430.0,0.00020261,2]
[363666578,1748805041544,-430.0,0.00020261,2]
[363666580,1748805041554,-154.67873888,0.0002027,2]
[363666582,1748805041568,-207.4,0.0002027,2]
[363666584,1748805041577,-800.0,0.0002027,2]
[363666586,1748805041587,-800.0,0.0002027,2]
[363666588,1748805041597,-300.0,0.0002027,2]
[363666590,1748805041606,-800.0,0.0002027,2]
[363666592,1748805041616,-300.0,0.0002027,2]
[363666594,1748805041626,-800.0,0.0002027,2]
[363666596,1748805041636,-300.0,0.0002027,2]
[363666598,1748805041646,-800.0,0.0002027,2]
[363666600,1748805041655,-300.0,0.0002027,2]
[363666602,1748805041665,-800.0,0.0002027,2]
[363666604,1748805041675,-5000.0,0.0002027,2]
[363666606,1748805041686,-300.0,0.0002027,2]
[363666608,1748805041696,-800.0,0.0002027,2]
[363666610,1748805041706,-300.0,0.0002027,2]
[363666613,1748805041719,-800.0,0.0002027,2]
[363666615,1748805041729,-800.0,0.0002027,2]
[363666617,1748805041740,-300.0,0.0002027,2]
[363666619,1748805041749,-800.0,0.0002027,2]
[363666621,1748805041760,-300.0,0.0002027,2]
[363666623,1748805041769,-800.0,0.0002027,2]
[363666625,1748805041780,-300.0,0.0002027,2]
[363666627,1748805041791,-800.0,0.0002027,2]
[363666629,1748805041801,-300.0,0.0002027,2]
[363666631,1748805041810,-800.0,0.0002027,2]
[363666633,1748805041820,-300.0,0.0002027,2]
[363666635,1748805041830,-800.0,0.0002027,2]
[363666637,1748805041839,-300.0,0.0002027,2]
[363666639,1748805041849,-300.0,0.0002027,2]
[363666641,1748805041858,-800.0,0.0002027,2]
[363666643,1748805041867,-300.0,0.0002027,2]
[363666644,1748805041877,-300.0,0.0002027,2]
[363666647,1748805041887,-430.0,0.00020271,2]
[363666662,1748805041897,-588.88,0.00020271,2]
[363666665,1748805042043,-548.49,0.00020272,2]
[363666667,1748805042053,-633.3,0.00020272,2]
[363666669,1748805042063,-4283.96470913,0.00020279,3]
[363666671,1748805042073,-151.0,0.000205,4]
[363666673,1748805042083,-4283.96470913,0.00020521,3]
[363666675,1748805042093,-497.78,0.00020535,2]
[363666677,1748805042103,-828.37,0.00020535,2]
[363666679,1748805042113,-624.53,0.00020535,2]
[363666681,1748805042122,-594.52,0.00020535,2]
[363666683,1748805042132,-430.0,0.00020535,2]
[363666685,1748805042141,-543.32,0.00020535,2]
[363666687,1748805042153,-430.0,0.00020535,2]
[363666689,1748805042162,-430.0,0.00020535,2]
[363666690,1748805042171,-168.73407253,0.00020538,2]
[363666693,1748805042181,-500.16902464,0.00020538,2]
[363666695,1748805042192,-430.0,0.00020545,2]
[363666697,1748805042202,-588.88,0.00020545,2]
[363666699,1748805042212,-548.49,0.00020546,2]
[363666701,1748805042222,-633.3,0.00020546,2]
[363666703,1748805042233,-151.0,0.00020547,2]
[363666705,1748805042242,-2932.97,0.000206,2]
[363666707,1748805042254,-480.18,0.000206,2]
[363666709,1748805042263,-740.73325982,0.0002065,2]
[363666711,1748805042273,-448.06,0.00020689,3]
[363666713,1748805042283,-4283.96470913,0.00020762,3]
[363666715,1748805042293,-151.0,0.000208,3]
[363666717,1748805042303,-497.78,0.00020809,2]
[363666719,1748805042312,-828.37,0.00020809,2]
[363666721,1748805042322,-624.53,0.00020809,2]
[363666723,1748805042332,-594.52,0.00020809,2]
[363666725,1748805042343,-430.0,0.00020809,2]
[363666727,1748805042353,-543.32,0.00020809,2]
[363666729,1748805042363,-430.0,0.00020809,2]
[363666731,1748805042372,-430.0,0.00020809,2]
[363666733,1748805042381,-5000.0,0.00020818,2]
[363666735,1748805042391,-430.0,0.00020819,2]
[363666737,1748805042402,-588.88,0.00020819,2]
[363666739,1748805042411,-548.49,0.0002082,2]
[363666741,1748805042421,-633.3,0.0002082,2]
[363666743,1748805042433,-3000.0,0.00021,2]
[363666745,1748805042443,-4283.96470913,0.00021003,4]
[363666748,1748805042454,-3000.0,0.0002101,2]
[363666750,1748805042463,-3000.0,0.0002102,2]
[363666752,1748805042474,-325.79914212,0.00021029,2]
[363666753,1748805042483,-499.08564506,0.00021029,2]
[363666755,1748805042493,-188.77363041,0.00021029,2]
[363666758,1748805042502,-163.73485021,0.00021029,2]
[363666760,1748805042512,-500.0,0.00021029,2]
[363666762,1748805042521,-3000.0,0.0002103,2]
[363666764,1748805042531,-3000.0,0.0002104,2]
[363666766,1748805042540,-3000.0,0.0002105,2]
[363666768,1748805042550,-3000.0,0.0002106,2]
[363666770,1748805042559,-3000.0,0.0002107,2]